fUST/lending_fUST_20251210
["ID","MTS","AMOUNT","RATE_DAILY","PERIOD"]
[398027622,1765305041149,-300.0,7.441e-05,2]
[398027623,1765305041158,-300.0,7.441e-05,2]
[398027624,1765305041167,-300.0,7.441e-05,2]
[398027625,1765305041180,-300.0,7.441e-05,2]
[398027626,1765305041189,-300.0,7.441e-05,2]
[398027627,1765305041198,-300.0,7.441e-05,2]
[398027628,1765305041207,-600.0,7.589e-05,2]
[398027629,1765305041219,-150.0,7.749e-05,2]
[398027630,1765305041229,-500.0,7.997e-05,2]
[398027631,1765305041238,-500.0,7.997e-05,2]
[398027632,1765305041249,-500.0,7.997e-05,2]
[398027633,1765305041259,-500.0,7.997e-05,2]
[398027634,1765305041269,-322.74311371,7.997e-05,2]
[398027666,1765305044419,-177.25688629,7.997e-05,2]
[398027667,1765305044428,-500.0,7.997e-05,2]
[398027668,1765305044438,-500.0,7.997e-05,2]
[398027669,1765305044448,-500.0,7.997e-05,2]
[398027670,1765305044457,-21.50311371,7.997e-05,2]
[398027727,1765305062102,167.75,6.5e-05,2]
[398027728,1765305124980,167.75,6.5e-05,2]
[398027767,1765306232454,-1480.000025,6.957e-05,2]
[398027774,1765306232508,-959.33713148,6.957e-05,2]
[398027776,1765306232526,-314.68930582,6.957e-05,2]
[398027792,1765306238605,-1000.9999859,6.957e-05,2]
[398027805,1765306240770,-1244.9735518,6.957e-05,2]
[398027806,1765306240780,-519.0,7.027e-05,2]
[398027807,1765306240789,-161.13485061,7.063e-05,2]
[398027808,1765306240800,-150.0,7.098e-05,2]
[398027809,1765306240809,-150.0,7.743e-05,2]
[398027810,1765306240819,-300.0,7.995e-05,2]
[398027811,1765306240828,-1200.0,7.995e-05,2]
[398027812,1765306240837,-1054.23535849,7.996e-05,2]
[398027813,1765306240849,-145.76464151,7.996e-05,2]
[398027814,1765306240858,-2000.0,7.996e-05,2]
[398027815,1765306240868,-478.49688629,7.997e-05,2]
[398027816,1765306240877,-500.0,7.997e-05,2]
[398027817,1765306240887,-500.0,7.997e-05,2]
[398027818,1765306240897,-370.46343435,7.997e-05,2]
[398027819,1765306240906,-230.0,7.997e-05,2]
[398027820,1765306240915,-345.25334645,7.997e-05,2]
[398027821,1765306240927,-154.74665355,7.997e-05,2]
[398027822,1765306240936,-381.95348253,7.997e-05,2]
[398027823,1765306240945,-500.0,7.997e-05,2]
[398027824,1765306240954,-500.0,7.997e-05,2]
[398027825,1765306240963,-500.0,7.997e-05,2]
[398027826,1765306240972,-500.0,7.997e-05,2]
[398027827,1765306240982,-500.0,7.997e-05,2]
[398027828,1765306240992,-628.03928853,7.997e-05,2]
[398027829,1765306241001,-500.0,7.997e-05,2]
[398027830,1765306241010,-500.0,7.997e-05,2]
[398027831,1765306241020,-500.0,7.997e-05,2]
[398027832,1765306241030,-500.0,7.997e-05,2]
[398027833,1765306241040,-500.0,7.997e-05,2]
[398027834,1765306241049,-604.2974015,7.997e-05,2]
[398027835,1765306241058,-500.0,7.997e-05,2]
[398027836,1765306241068,-500.0,7.997e-05,2]
[398027837,1765306241077,-500.0,7.997e-05,2]
[398027838,1765306241087,-500.0,7.997e-05,2]
[398027839,1765306241096,-500.0,7.997e-05,2]
[398027840,1765306241105,-500.0,7.997e-05,2]
[398027841,1765306241115,-500.0,7.997e-05,2]
[398027842,1765306241124,-500.0,7.997e-05,2]
[398027843,1765306241135,-500.0,7.997e-05,2]
[398027844,1765306241145,-297.26626619,7.997e-05,2]
[398027845,1765306241155,-500.0,7.997e-05,2]
[398027846,1765306241165,-500.0,7.997e-05,2]
[398027847,1765306241174,-500.0,7.997e-05,2]
[398027848,1765306241183,-500.0,7.997e-05,2]
[398027849,1765306241193,-500.0,7.997e-05,2]
[398027850,1765306241202,-500.0,7.997e-05,2]
[398027851,1765306241212,-500.0,7.997e-05,2]
[398027852,1765306241222,-500.0,7.997e-05,2]
[398027853,1765306241231,-500.0,7.997e-05,2]
[398027854,1765306241240,-500.0,7.997e-05,2]
[398027855,1765306241251,-331.7726438,7.997e-05,2]
[398027856,1765306241260,-351.0611151,7.997e-05,2]
[398027857,1765306241269,-500.0,7.997e-05,2]
[398027858,1765306241278,-500.0,7.997e-05,2]
[398027859,1765306241287,-500.0,7.997e-05,2]
[398027860,1765306241296,-32.80952579,7.997e-05,2]
[398027888,1765306243713,-467.19047421,7.997e-05,2]
[398027889,1765306243724,-17.10128098,7.997e-05,2]
[398027890,1765306243769,-482.89871902,7.997e-05,2]
[398027891,1765306243779,-500.0,7.997e-05,2]
[398027892,1765306243789,-500.0,7.997e-05,2]
[398027893,1765306243799,-500.0,7.997e-05,2]
[398027894,1765306243812,-666.9722907,7.998e-05,2]
[398027904,1765306262362,152.89,6.5e-05,2]
[398027905,1765306328525,152.97,6.5e-05,2]
[398027906,1765306335758,152.87,6.523e-05,2]
[398027907,1765306389033,152.97,6.5e-05,2]
[398027908,1765306421807,-480.0,6.661e-05,2]
[398027909,1765306421832,-300.0,6.661e-05,2]
[398027910,1765306421855,-44719.8429971,6.662e-05,2]
[398027911,1765306421881,-300.0,6.794e-05,2]
[398027912,1765306421906,-300.0,6.794e-05,2]
[398027913,1765306421932,-300.0,6.794e-05,2]
[398027914,1765306421956,-300.0,6.794e-05,2]
[398027915,1765306421981,-300.0,6.794e-05,2]
[398027916,1765306422005,-300.0,6.794e-05,2]
[398027917,1765306422029,-300.0,6.794e-05,2]
[398027918,1765306422053,-300.0,6.794e-05,2]
[398027919,1765306422077,-300.0,6.794e-05,2]
[398027920,1765306422102,-300.0,6.794e-05,2]
[398027921,1765306422127,-300.0,6.794e-05,2]
[398027922,1765306422151,-300.0,6.794e-05,2]
[398027923,1765306422175,-300.0,6.794e-05,2]
[398027924,1765306422200,-300.0,6.794e-05,2]
[398027925,1765306422224,-300.0,6.794e-05,2]
[398027926,1765306422248,-152.97,6.8e-05,2]
[398027927,1765306422272,-166.09074814,6.9e-05,2]
[398027928,1765306422296,-600.0,6.929e-05,2]
[398027929,1765306422320,-152.97,7.1e-05,2]
[398027930,1765306422345,-150.0,7.111e-05,2]
[398027931,1765306422369,-152.97,7.3e-05,2]
[398027932,1765306422393,-420.0,7.327e-05,2]
[398027933,1765306422418,-152.97,7.6e-05,2]
[398027934,1765306422446,-720.0,7.622e-05,2]
[398027935,1765306422471,-150.0,7.758e-05,2]
[398027936,1765306422496,-152.97,7.9e-05,2]
[398027937,1765306422518,-4277.1559006,7.997e-05,2]
[398027938,1765306422541,-117796.66984241,7.998e-05,2]
[398027939,1765306422564,-587.0,8.06e-05,2]
[398027940,1765306422588,-152.97,8.1e-05,2]
[398027941,1765306422613,-227.93322209,8.156e-05,2]
[398027942,1765306422635,-581.78669,8.156e-05,2]
[398027943,1765306422661,-500.0,8.219e-05,2]
[398027944,1765306422683,-190.33834957,8.219e-05,2]
[398027945,1765306422706,-2045.13097215,8.372e-05,2]
[398027946,1765306422734,-864.0,8.384e-05,2]
[398027947,1765306422759,-152.97,8.4e-05,2]
[398027948,1765306422786,-164.2,8.404e-05,2]
[398027949,1765306422810,-3935.94506004,8.468e-05,2]
[398027950,1765306422833,-3935.94506004,8.679e-05,2]
[398027951,1765306422859,-152.97,8.7e-05,2]
[398027952,1765306422883,-2045.13097215,8.74e-05,2]
[398027953,1765306422905,-2045.13097215,8.771e-05,2]
[398027954,1765306422929,-3935.94506004,8.785e-05,2]
[398027955,1765306422952,-1627.0,8.795e-05,2]
[398027956,1765306422975,-823.0,8.866e-05,2]
[398027957,1765306422997,-195.9870828,8.9e-05,2]
[398027958,1765306423020,-152.97,8.9e-05,2]
[398027959,1765306423044,-639.03707072,8.958e-05,2]
[398027960,1765306439531,-14164.329214,7.997e-05,2]
[398027961,1765306446471,152.97,6.5e-05,2]
[398027962,1765306505823,152.97,6.5e-05,2]
[398027963,1765306565413,152.97,6.5e-05,2]
[398027964,1765306624838,152.97,6.5e-05,2]
[398027965,1765306684538,152.97,6.5e-05,2]
[398027966,1765306744110,152.97,6.5e-05,2]
[398027967,1765306803919,152.97,6.5e-05,2]
[398027968,1765306863761,152.97,6.5e-05,2]
[398028063,1765307437743,-314.68930582,7.027e-05,2]
[398028065,1765307437753,-150.0,7.098e-05,2]
[398028067,1765307437763,-520.0,7.098e-05,2]
[398028069,1765307437772,-205.13682016,7.173e-05,2]
[398028071,1765307437781,-150.0,7.743e-05,2]
[398028073,1765307437792,-172.11,8.389e-05,2]
[398028074,1765307437801,-210.0,8.833e-05,2]
[398028076,1765307437810,-14164.329214,8.834e-05,2]
[398028078,1765307437820,-2000.0,8.957e-05,2]
[398028079,1765307437829,-334.0,8.958e-05,2]
[398028081,1765307437838,-334.0,8.958e-05,2]
[398028082,1765307437848,-334.0,8.958e-05,2]
[398028083,1765307437857,-334.0,8.958e-05,2]
[398028084,1765307437868,-334.0,8.958e-05,2]
[398028085,1765307437878,-334.0,8.958e-05,2]
[398028086,1765307437887,-334.0,8.958e-05,2]
[398028087,1765307437896,-334.0,8.958e-05,2]
[398028088,1765307437905,-334.0,8.958e-05,2]
[398028089,1765307437915,-334.0,8.958e-05,2]
[398028090,1765307437924,-334.0,8.958e-05,2]
[398028091,1765307437934,-334.0,8.958e-05,2]
[398028092,1765307437944,-300.0,9.01e-05,2]
[398028093,1765307437953,-300.0,9.01e-05,2]
[398028094,1765307437963,-300.0,9.01e-05,2]
[398028095,1765307437972,-300.0,9.01e-05,2]
[398028096,1765307437981,-300.0,9.01e-05,2]
[398028097,1765307437991,-300.0,9.01e-05,2]
[398028098,1765307438001,-300.0,9.01e-05,2]
[398028099,1765307438014,-300.0,9.01e-05,2]
[398028100,1765307438023,-300.0,9.01e-05,2]
[398028101,1765307438033,-300.0,9.01e-05,2]
[398028102,1765307438043,-300.0,9.01e-05,2]
[398028103,1765307438052,-300.0,9.01e-05,2]
[398028104,1765307438061,-300.0,9.01e-05,2]
[398028105,1765307438071,-300.0,9.01e-05,2]
[398028106,1765307438083,-300.0,9.01e-05,2]
[398028107,1765307438092,-229.48,9.034e-05,2]
[398028108,1765307438102,-347.30356795,9.049e-05,2]
[398028109,1765307438111,-242.06144779,9.173e-05,2]
[398028110,1765307438120,-600.0,9.189e-05,2]
[398028111,1765307438131,-954.362481,9.629e-05,2]
[398028112,1765307438141,-14164.329214,9.671e-05,2]
[398028113,1765307438151,-625.33769873,9.678e-05,2]
[398028114,1765307438160,-500.0,9.678e-05,2]
[398028115,1765307438170,-231.22901279,9.678e-05,2]
[398028116,1765307438179,-286.85,9.679e-05,2]
[398028117,1765307438188,-212.9470532,9.994e-05,2]
[398028118,1765307438198,-178.25526683,9.999e-05,2]
[398028119,1765307438208,-500.0,9.999e-05,2]
[398028120,1765307438218,-500.0,9.999e-05,2]
[398028121,1765307438227,-300.24845313,9.999e-05,2]
[398028122,1765307438236,-500.0,0.0001,2]
[398028123,1765307438246,-10000.0,0.0001,2]
[398028124,1765307438255,-151.0,0.0001,2]
[398028125,1765307438265,-151.0,0.0001,2]
[398028126,1765307438275,-705.14185,0.0001,2]
[398028127,1765307438285,-705.14185,0.0001,2]
[398028128,1765307438294,-705.14185,0.0001,2]
[398028129,1765307438304,-705.14185,0.0001,2]
[398028130,1765307438314,-151.0,0.0001,2]
[398028131,1765307438323,-151.02816438,0.0001,2]
[398028132,1765307438333,-151.0,0.0001,2]
[398028133,1765307438343,-151.0,0.0001,2]
[398028134,1765307438353,-151.0,0.0001,2]
[398028135,1765307438363,-151.0,0.0001,2]
[398028136,1765307438372,-151.0,0.0001,2]
[398028137,1765307438382,-720.0,0.00010108,2]
[398028138,1765307438392,-344.22,0.00010325,2]
[398028139,1765307438402,-1500.0,0.000104,2]
[398028140,1765307438412,-151.0,0.00010508,2]
[398028141,1765307438421,-151.0,0.00010508,2]
[398028142,1765307438431,-705.14185,0.00010508,2]
[398028143,1765307438440,-705.14185,0.00010508,2]
[398028144,1765307438451,-705.14185,0.00010508,2]
[398028145,1765307438462,-705.14185,0.00010508,2]
[398028146,1765307438472,-14164.329214,0.00010508,2]
[398028147,1765307438481,-151.0,0.00010548,2]
[398028148,1765307438491,-999.0,0.00010959,2]
[398028149,1765307438501,-401.59,0.0001097,2]
[398028150,1765307438510,-151.0,0.00011096,2]
[398028151,1765307438520,-864.0,0.00011119,2]
[398028152,1765307438530,-278.98607541,0.00011173,2]
[398028153,1765307438540,-458.96,0.00011615,2]
[398028154,1765307438549,-151.0,0.00011644,2]
[398028155,1765307438559,-151.0,0.00012192,2]
[398028156,1765307438568,-1020.72625869,0.00012229,2]
[398028157,1765307438578,-1000.0,0.00012231,2]
[398028158,1765307438588,-516.33,0.0001226,2]
[398028159,1765307438597,-151.0,0.000123,2]
[398028160,1765307438611,-151.0,0.000123,2]
[398028161,1765307438623,-554.89098941,0.00012328,2]
[398028162,1765307438632,-500.0,0.00012328,2]
[398028163,1765307438642,-500.0,0.00012328,2]
[398028164,1765307438651,-500.0,0.00012328,2]
[398028165,1765307438661,-500.0,0.00012328,2]
[398028166,1765307438670,-500.0,0.00012328,2]
[398028167,1765307438679,-500.0,0.00012328,2]
[398028168,1765307438688,-500.0,0.00012328,2]
[398028169,1765307438698,-500.0,0.00012328,2]
[398028170,1765307438709,-644.46074923,0.00012328,2]
[398028171,1765307438719,-500.0,0.00012328,2]
[398028172,1765307438729,-500.0,0.00012328,2]
[398028173,1765307438740,-500.0,0.00012328,2]
[398028174,1765307438749,-500.0,0.00012328,2]
[398028175,1765307438759,-500.0,0.00012328,2]
[398028176,1765307438768,-500.0,0.00012328,2]
[398028177,1765307438781,-500.0,0.00012328,2]
[398028178,1765307438798,-516.66666667,0.00012328,2]
[398028179,1765307438807,-516.66666667,0.00012328,2]
[398028180,1765307438816,-516.66666667,0.00012328,2]
[398028181,1765307438826,-516.66666667,0.00012328,2]
[398028182,1765307438835,-516.66666667,0.00012328,2]
[398028183,1765307438845,-516.66666667,0.00012328,2]
[398028184,1765307438855,-516.66666667,0.00012328,2]
[398028185,1765307438864,-516.66666667,0.00012328,2]
[398028186,1765307438875,-516.66666667,0.00012328,2]
[398028187,1765307438884,-151.0,0.00012328,2]
[398028188,1765307438894,-152.579751,0.00012328,2]
[398028189,1765307438903,-705.14185,0.00012328,2]
[398028190,1765307438912,-705.14185,0.00012328,2]
[398028191,1765307438922,-705.14185,0.00012328,2]
[398028192,1765307438932,-705.14185,0.00012328,2]
[398028193,1765307438942,-220.120643,0.00012329,2]
[398028194,1765307438952,-220.120643,0.00012329,2]
[398028195,1765307438961,-220.120643,0.00012329,2]
[398028196,1765307438973,-220.120643,0.00012329,2]
[398028197,1765307438982,-220.120643,0.00012329,2]
[398028198,1765307438992,-220.120643,0.00012329,2]
[398028199,1765307439002,-220.120643,0.00012329,2]
[398028200,1765307439012,-220.120643,0.00012329,2]
[398028201,1765307439025,-151.0,0.00012329,2]
[398028202,1765307439035,-151.0,0.00012329,2]
[398028203,1765307439045,-151.0,0.00012329,2]
[398028204,1765307439057,-151.0,0.00012329,2]
[398028205,1765307439067,-151.0,0.00012329,2]
[398028206,1765307439076,-151.0,0.00012329,2]
[398028207,1765307439086,-296.082624,0.00012329,2]
[398028208,1765307439098,-151.0,0.00012329,2]
[398028209,1765307439108,-151.0,0.00012329,2]
[398028210,1765307439118,-172.659327,0.00012329,2]
[398028211,1765307439128,-151.0,0.00012329,2]
[398028212,1765307439138,-172.659327,0.00012329,2]
[398028213,1765307439148,-151.0,0.00012329,2]
[398028214,1765307439158,-172.659327,0.00012329,2]
[398028215,1765307439167,-151.0,0.00012329,2]
[398028216,1765307439176,-172.659327,0.00012329,2]
[398028217,1765307439186,-151.0,0.00012329,2]
[398028218,1765307439196,-172.659327,0.00012329,2]
[398028219,1765307439205,-151.0,0.00012329,2]
[398028220,1765307439215,-172.659327,0.00012329,2]
[398028221,1765307439225,-151.0,0.00012329,2]
[398028222,1765307439235,-172.659327,0.00012329,2]
[398028223,1765307439246,-151.0,0.00012329,2]
[398028224,1765307439256,-172.659327,0.00012329,2]
[398028225,1765307439265,-151.0,0.00012329,2]
[398028226,1765307439274,-172.659327,0.00012329,2]
[398028227,1765307439288,-151.0,0.00012329,2]
[398028228,1765307439297,-172.659327,0.00012329,2]
[398028229,1765307439307,-151.0,0.00012329,2]
[398028230,1765307439316,-172.659327,0.00012329,2]
[398028231,1765307439326,-210.269629,0.00012329,2]
[398028232,1765307439336,-172.659327,0.00012329,2]
[398028233,1765307439346,-151.800982,0.00012329,2]
[398028234,1765307439356,-151.0,0.00012329,2]
[398028235,1765307439366,-259.325539,0.00012329,2]
[398028236,1765307439376,-151.0,0.00012329,2]
[398028237,1765307439385,-259.325539,0.00012329,2]
[398028238,1765307439395,-151.0,0.00012329,2]
[398028239,1765307439404,-259.325539,0.00012329,2]
[398028240,1765307439414,-259.325539,0.00012329,2]
[398028241,1765307439424,-259.325539,0.00012329,2]
[398028242,1765307439434,-259.325539,0.00012329,2]
[398028243,1765307439443,-259.325539,0.00012329,2]
[398028244,1765307439454,-259.325539,0.00012329,2]
[398028245,1765307439464,-259.325539,0.00012329,2]
[398028246,1765307439473,-259.325539,0.00012329,2]
[398028247,1765307439483,-259.325539,0.00012329,2]
[398028249,1765307439494,-259.325539,0.00012329,2]
[398028250,1765307439503,-151.0,0.00012329,2]
[398028251,1765307439513,-151.0,0.00012329,2]
[398028252,1765307439522,-151.0,0.00012329,2]
[398028253,1765307439532,-151.0,0.00012329,2]
[398028254,1765307439542,-151.0,0.00012329,2]
[398028255,1765307439552,-151.0,0.00012329,2]
[398028256,1765307439561,-151.0,0.00012329,2]
[398028257,1765307439571,-151.0,0.00012329,2]
[398028258,1765307439580,-219.815713,0.00012329,2]
[398028260,1765307439590,-151.0,0.00012329,2]
[398028261,1765307439599,-151.0,0.00012329,2]
[398028262,1765307439609,-151.0,0.00012329,2]
[398028263,1765307439618,-151.0,0.00012329,2]
[398028264,1765307439631,-151.0,0.00012329,2]
[398028265,1765307439641,-151.0,0.00012329,2]
[398028266,1765307439651,-151.0,0.00012329,2]
[398028267,1765307439660,-151.0,0.00012329,2]
[398028268,1765307439670,-151.0,0.00012329,2]
[398028269,1765307439679,-151.0,0.00012329,2]
[398028270,1765307439690,-190.587044,0.00012329,2]
[398028271,1765307439700,-151.0,0.00012329,2]
[398028272,1765307439710,-151.0,0.00012329,2]
[398028273,1765307439720,-151.0,0.00012329,2]
[398028274,1765307439731,-151.0,0.00012329,2]
[398028275,1765307439741,-151.0,0.00012329,2]
[398028276,1765307439751,-151.0,0.00012329,2]
[398028277,1765307439762,-195.485429,0.00012329,2]
[398028278,1765307439772,-151.0,0.00012329,2]
[398028279,1765307439782,-151.0,0.00012329,2]
[398028280,1765307439791,-151.0,0.00012329,2]
[398028281,1765307439801,-151.0,0.00012329,2]
[398028282,1765307439810,-151.0,0.00012329,2]
[398028283,1765307439819,-151.0,0.00012329,2]
[398028284,1765307439829,-151.0,0.00012329,2]
[398028285,1765307439838,-151.0,0.00012329,2]
[398028286,1765307439848,-151.0,0.00012329,2]
[398028287,1765307439858,-151.0,0.00012329,2]
[398028288,1765307439868,-161.184916,0.00012329,2]
[398028289,1765307439878,-222.918,0.00012329,2]
[398028290,1765307439888,-222.918,0.00012329,2]
[398028291,1765307439898,-222.918,0.00012329,2]
[398028292,1765307439908,-222.918,0.00012329,2]
[398028293,1765307439918,-222.918,0.00012329,2]
[398028294,1765307439928,-222.918,0.00012329,2]
[398028295,1765307439938,-222.918,0.00012329,2]
[398028296,1765307439948,-222.918,0.00012329,2]
[398028297,1765307439958,-222.918,0.00012329,2]
[398028298,1765307439970,-222.918,0.00012329,2]
[398028299,1765307439981,-222.918,0.00012329,2]
[398028300,1765307439991,-222.918,0.00012329,2]
[398028301,1765307440001,-151.0,0.00012329,2]
[398028302,1765307440014,-151.0,0.00012329,2]
[398028303,1765307440024,-151.0,0.00012329,2]
[398028304,1765307440034,-525.524107,0.00012329,2]
[398028305,1765307440045,-525.524107,0.00012329,2]
[398028306,1765307440054,-525.524107,0.00012329,2]
[398028307,1765307440064,-525.524107,0.00012329,2]
[398028308,1765307440073,-525.524107,0.00012329,2]
[398028309,1765307440082,-525.524107,0.00012329,2]
[398028310,1765307440094,-525.524107,0.00012329,2]
[398028311,1765307440104,-525.524107,0.00012329,2]
[398028312,1765307440113,-525.524107,0.00012329,2]
[398028313,1765307440124,-151.0,0.00012329,2]
[398028314,1765307440134,-152.730879,0.00012329,2]
[398028315,1765307440144,-196.238409,0.00012329,2]
[398028316,1765307440153,-196.238409,0.00012329,2]
[398028317,1765307440163,-196.238409,0.00012329,2]
[398028318,1765307440172,-196.238409,0.00012329,2]
[398028319,1765307440182,-202.13816,0.00012329,2]
[398028320,1765307440191,-196.238409,0.00012329,2]
[398028321,1765307440201,-202.13816,0.00012329,2]
[398028322,1765307440211,-196.238409,0.00012329,2]
[398028323,1765307440220,-202.13816,0.00012329,2]
[398028324,1765307440230,-196.238409,0.00012329,2]
[398028325,1765307440241,-202.13816,0.00012329,2]
[398028327,1765307440250,-196.238409,0.00012329,2]
[398028330,1765307440259,-202.13816,0.00012329,2]
[398028333,1765307440269,-196.238409,0.00012329,2]
[398028334,1765307440279,-202.13816,0.00012329,2]
[398028336,1765307440288,-196.238409,0.00012329,2]
[398028338,1765307440298,-196.238409,0.00012329,2]
[398028339,1765307440308,-196.238409,0.00012329,2]
[398028340,1765307440318,-202.13816,0.00012329,2]
[398028341,1765307440329,-202.13816,0.00012329,2]
[398028342,1765307440339,-202.13816,0.00012329,2]
[398028343,1765307440578,-202.13816,0.00012329,2]
[398028344,1765307440588,-202.13816,0.00012329,2]
[398028345,1765307440598,-202.13816,0.00012329,2]
[398028346,1765307440607,-151.0,0.00012329,2]
[398028347,1765307440616,-151.0,0.00012329,2]
[398028348,1765307440625,-151.0,0.00012329,2]
[398028349,1765307440635,-151.0,0.00012329,2]
[398028350,1765307440644,-175.969202,0.00012329,2]
[398028351,1765307440653,-151.0,0.00012329,2]
[398028352,1765307440663,-151.0,0.00012329,2]
[398028353,1765307440672,-151.0,0.00012329,2]
[398028354,1765307440682,-151.0,0.00012329,2]
[398028355,1765307440692,-151.0,0.00012329,2]
[398028356,1765307440701,-151.0,0.00012329,2]
[398028357,1765307440711,-151.0,0.00012329,2]
[398028358,1765307440720,-151.0,0.00012329,2]
[398028359,1765307440730,-151.0,0.00012329,2]
[398028360,1765307440740,-151.0,0.00012329,2]
[398028361,1765307440750,-151.0,0.00012329,2]
[398028362,1765307440761,-151.0,0.00012329,2]
[398028363,1765307440771,-151.0,0.00012329,2]
[398028364,1765307440781,-151.0,0.00012329,2]
[398028365,1765307440791,-151.0,0.00012329,2]
[398028366,1765307440801,-151.0,0.00012329,2]
[398028367,1765307440810,-151.0,0.00012329,2]
[398028368,1765307440822,-151.0,0.00012329,2]
[398028369,1765307440831,-151.0,0.00012329,2]
[398028370,1765307440841,-151.0,0.00012329,2]
[398028371,1765307440850,-151.0,0.00012329,2]
[398028372,1765307440859,-151.0,0.00012329,2]
[398028373,1765307440868,-151.0,0.00012329,2]
[398028374,1765307440878,-293.679282,0.00012329,2]
[398028375,1765307440887,-151.0,0.00012329,2]
[398028376,1765307440897,-151.0,0.00012329,2]
[398028377,1765307440906,-151.0,0.00012329,2]
[398028378,1765307440915,-280.64243,0.00012329,2]
[398028379,1765307440926,-151.0,0.00012329,2]
[398028380,1765307440935,-151.0,0.00012329,2]
[398028381,1765307440945,-151.0,0.00012329,2]
[398028382,1765307440955,-151.0,0.00012329,2]
[398028383,1765307440964,-151.0,0.00012329,2]
[398028384,1765307440973,-151.0,0.00012329,2]
[398028385,1765307440983,-151.0,0.00012329,2]
[398028386,1765307440992,-151.0,0.00012329,2]
[398028387,1765307441002,-151.0,0.00012329,2]
[398028388,1765307441014,-151.0,0.00012329,2]
[398028389,1765307441024,-151.0,0.00012329,2]
[398028390,1765307441033,-151.0,0.00012329,2]
[398028391,1765307441042,-151.0,0.00012329,2]
[398028392,1765307441053,-151.0,0.00012329,2]
[398028393,1765307441063,-189.386222,0.00012329,2]
[398028394,1765307441072,-151.0,0.00012329,2]
[398028395,1765307441081,-189.386222,0.00012329,2]
[398028396,1765307441093,-189.386222,0.00012329,2]
[398028397,1765307441102,-151.0,0.00012329,2]
[398028398,1765307441111,-189.386222,0.00012329,2]
[398028399,1765307441120,-151.0,0.00012329,2]
[398028400,1765307441129,-189.386222,0.00012329,2]
[398028401,1765307441138,-151.0,0.00012329,2]
[398028402,1765307441147,-189.386222,0.00012329,2]
[398028403,1765307441157,-189.386222,0.00012329,2]
[398028404,1765307441166,-168.904745,0.00012329,2]
[398028405,1765307441176,-189.386222,0.00012329,2]
[398028406,1765307441185,-168.904745,0.00012329,2]
[398028407,1765307441195,-189.386222,0.00012329,2]
[398028408,1765307441204,-168.904745,0.00012329,2]
[398028409,1765307441213,-189.386222,0.00012329,2]
[398028410,1765307441223,-168.904745,0.00012329,2]
[398028411,1765307441232,-189.386222,0.00012329,2]
[398028412,1765307441242,-168.904745,0.00012329,2]
[398028413,1765307441251,-189.386222,0.00012329,2]
[398028414,1765307441261,-168.904745,0.00012329,2]
[398028415,1765307441269,-168.904745,0.00012329,2]
[398028416,1765307441279,-168.904745,0.00012329,2]
[398028417,1765307441288,-168.904745,0.00012329,2]
[398028418,1765307441298,-168.904745,0.00012329,2]
[398028419,1765307441308,-168.904745,0.00012329,2]
[398028420,1765307441317,-168.904745,0.00012329,2]
[398028421,1765307441327,-258.631408,0.00012329,2]
[398028422,1765307441336,-258.631408,0.00012329,2]
[398028423,1765307441346,-258.631408,0.00012329,2]
[398028424,1765307441356,-258.631408,0.00012329,2]
[398028425,1765307441365,-258.631408,0.00012329,2]
[398028426,1765307441375,-258.631408,0.00012329,2]
[398028427,1765307441384,-258.631408,0.00012329,2]